[Event "Skalica Rapid 2020"]
[Site "Skalica"]
[Date "2020.08.29"]
[Round "2.4"]
[White "Tupy, Emil"]
[Black "Stevik, Patrik"]
[Result "0-1"]
[ECO "A05"]
[WhiteElo "1538"]
[BlackElo "1895"]
[Annotator "NA"]
[PlyCount "76"]
[EventDate "2020.08.29"]
[EventType "swiss"]
[EventCountry "SVK"]
[SourceTitle "playchess.com"]
[Source "ChessBase"]
[SourceQuality "1"]
[TimeControl "600+5"]

1. Nf3 Nf6 {[%emt 0:00:04]} 2. d4 {[%emt 0:00:00]} e6 {[%emt 0:00:03]} 3. Bf4 {[%emt 0:00:04]} b6 {[%emt 0:00:02]} 4. g3 {[%emt 0:00:03]} Bb7 {[%emt 0:00:01]} 5. Bg2 {[%emt 0:00:01]} Be7 {[%emt 0:00:03]} 6. O-O {[%emt 0:00:02]} O-O {[%emt 0:00:02]} 7. Nc3 {[%emt 0:00:01]} c5 {[%emt 0:00:03]} 8. e3 {[%emt 0:00:09]} d5 {[%emt 0:00:03]} 9. Re1 {[%emt 0:00:10]} Nbd7 {[%emt 0:00:11]} 10. Nb5 {[%emt 0:00:29]} a6 {[%emt 0:00:00]} 11. Nc3 {[%emt 0:00:08]} b5 {[%emt 0:00:10]} 12. a3 {[%emt 0:00:05]} Rc8 {[%emt 0:00:03]} 13. Ne5 $17 {[%emt 0:00:44]} Nb6 {[%emt 0:01:07]} 14. h4 {[%emt 0:00:17]} Nc4 {[%emt 0:00:14]} 15. Nxc4 {[%emt 0:00:06]} bxc4 {[%emt 0:00:03]} 16. Bg5 {[%emt 0:00:25]} Qb6 {[%emt 0:00:25]} 17. Qd2 {[%emt 0:00:14]} Bc6 {[%emt 0:00:21]} 18. Rab1 {[%emt 0:00:08]} Rb8 {[%emt 0:00:12]} 19. dxc5 {[%emt 0:00:13]} Qxc5 {[%emt 0:00:09]} 20. b4 {[%emt 0:00:15]} cxb3 {[%emt 0:00:04]} 21. Rxb3 {[%emt 0:00:05]} Rxb3 {[%emt 0:00:07]} 22. cxb3 {[%emt 0:00:02]} Qxa3 {[%emt 0:00:02]} 23. Qc2 {[%emt 0:00:15]} h6 {[%emt 0:00:12]} 24. Bf4 {[%emt 0:00:07]} Rc8 {[%emt 0:00:16]} 25. Nb1 {[%emt 0:00:08]} Qa5 {[%emt 0:00:06]} 26. Rc1 {[%emt 0:00:22]} Ne4 {[%emt 0:00:14]} 27. Bxe4 {[%emt 0:00:11]} dxe4 {[%emt 0:00:01]} 28. Qd1 {[%emt 0:00:35]} Rd8 {[%emt 0:00:06]} 29. Qg4 {[%emt 0:00:19]} Bd5 {[%emt 0:00:41]} 30. Nc3 {[%emt 0:00:43]} Rc8 {[%emt 0:00:12]} 31. Ne2 {[%emt 0:00:27]} Rxc1+ {[%emt 0:00:02]} 32. Nxc1 {[%emt 0:00:01]} Qe1+ {[%emt 0:00:01]} 33. Kg2 {[%emt 0:00:04]} Qxc1 {[%emt 0:00:03]} 34. Bxh6 {[%emt 0:00:02]} Bf6 {[%emt 0:00:08]} 35. Bg5 {[%emt 0:00:15]} Qc3 {[%emt 0:00:06]} 36. Bxf6 {[%emt 0:00:12]} Qxf6 {[%emt 0:00:03]} 37. h5 {[%emt 0:00:08]} Bxb3 {[%emt 0:00:02]} 38. Qxe4 {[%emt 0:00:04]} Bd5 {[%emt 0:00:03]} 0-1

[Event "Skalica Rapid 2020"]
[Site "Skalica"]
[Date "2020.08.29"]
[Round "2.5"]
[White "Manik Mikulas"]
[Black "Havelka Ondrej"]
[Result "1-0"]
[ECO "C11"]
[WhiteElo "2313"]
[BlackElo "1997"]
[Annotator "ChessBase"]
[PlyCount "43"]
[EventDate "2020.08.29"]
[EventType "swiss"]
[EventCountry "SVK"]
[SourceTitle "playchess.com"]
[Source "ChessBase"]
[SourceQuality "1"]
[TimeControl "600+5"]

1. e4 {[%emt 0:00:00]} e6 {[%emt 0:00:00]} 2. d4 {[%emt 0:00:00]} d5 {[%emt 0:00:00]} 3. Nc3 {[%emt 0:00:00]} Nf6 {[%emt 0:00:00]} 4. e5 {[%emt 0:00:01]} Nfd7 {[%emt 0:00:00]} 5. f4 {[%emt 0:00:01]} c5 {[%emt 0:00:05]} 6. Nf3 {[%emt 0:00:01]} Nc6 {[%emt 0:00:00]} 7. Be3 {[%emt 0:00:01]} a6 {[%emt 0:00:00]} 8. Qd2 {[%emt 0:00:02]} b5 {[%emt 0:00:00]} 9. dxc5 {[%emt 0:00:05]} Bxc5 {[%emt 0:00:04]} 10. Bxc5 {[%emt 0:00:22]} Nxc5 {[%emt 0:00:02]} 11. Qf2 {[%emt 0:00:00]} Qb6 {[%emt 0:00:03]} 12. Bd3 {[%emt 0:00:00]} b4 {[%emt 0:00:28]} 13. Ne2 {[%emt 0:00:01]} a5 {[%emt 0:00:10]} 14. O-O {[%emt 0:00:15]} Ba6 {[%emt 0:00:25]} 15. f5 {[%emt 0:00:03]} Bxd3 {[%emt 0:01:18]} 16. cxd3 {[%emt 0:00:02]} Rb8 {[%emt 0:00:09]} 17. Nf4 {[%emt 0:00:20]} Ne7 {[%emt 0:01:37]} 18. Rac1 {[%emt 0:00:36]} Nd7 {[%emt 0:01:20]} 19. fxe6 {[%emt 0:00:08]} fxe6 {[%emt 0:00:15]} 20. Nd4 {[%emt 0:00:59]} Nxe5 {[%emt 0:02:03]} 21. Nfxe6 {[%emt 0:00:10]} g6 {[%emt 0:03:07]} 22. Qf6 {[%emt 0:00:26]} 1-0

[Event "Skalica Rapid 2020"]
[Site "Skalica"]
[Date "2020.08.29"]
[Round "2.5"]
[White "Grieve, Harry"]
[Black "Sperat Czar, Nicolas"]
[Result "1-0"]
[ECO "A45"]
[WhiteElo "1887"]
[BlackElo "1737"]
[Annotator "NA RC"]
[PlyCount "79"]
[EventDate "2020.08.29"]
[EventType "swiss"]
[EventCountry "SVK"]
[SourceTitle "playchess.com"]
[Source "ChessBase"]
[SourceQuality "1"]
[TimeControl "600+5"]

1. d4 {[%emt 0:00:00]} Nf6 {[%emt 0:01:00]} 2. Bg5 {[%emt 0:00:00]} d5 {[%emt 0:00:03]} 3. Bxf6 {[%emt 0:00:00]} exf6 {[%emt 0:00:04]} 4. e3 {[%emt 0:00:00]} Bd6 {[%emt 0:00:10]} 5. g3 {[%emt 0:00:02]} O-O {[%emt 0:00:04]} 6. Bg2 {[%emt 0:00:01] D00: 1 d4 d5: Unusual lines.} c6 {[%emt 0:00:10]} 7. Ne2 {[%emt 0:00:01]} Bf5 {[%emt 0:00:08]} 8. O-O {[%emt 0:00:04]} Nd7 {[%emt 0:00:15]} 9. b3 {[%emt 0:00:01]} Re8 {[%emt 0:00:16]} 10. c4 {[%emt 0:00:01]} dxc4 {[%emt 0:00:20]} 11. bxc4 {[%emt 0:00:02] [#]} Nf8 $146 {[%emt 0:00:11]} ({Predecessor:} 11... Be4 12. Bxe4 Rxe4 13. Nbc3 Re8 14. Rb1 b6 15. a4 f5 16. a5 bxa5 17. Qd3 g6 {1-0 (36) Grieve,H (2292)-Dijksterhuis,R (1958) Vale 2018}) 12. Nbc3 {[%emt 0:00:02]} Qd7 {[%emt 0:00:26]} 13. Qb3 {[%emt 0:00:25]} Rab8 {[%emt 0:00:28]} 14. Rfc1 {[%emt 0:00:11]} h5 {[%emt 0:00:30]} 15. a4 {[%emt 0:01:16]} h4 {[%emt 0:00:04]} 16. a5 {[%emt 0:00:02]} Bh3 {[%emt 0:00:39]} 17. Bh1 {[%emt 0:00:10]} Ne6 {[%emt 0:00:08]} 18. Qa4 {[%emt 0:01:32]} Ng5 {[%emt 0:00:27]} 19. c5 {[%emt 0:00:31]} Bc7 {[%emt 0:00:18]} 20. a6 {[%emt 0:00:01]} Qg4 {[%emt 0:00:14]} 21. Qd1 {[%emt 0:01:00]} hxg3 {[%emt 0:01:52]} 22. hxg3 $17 {[%emt 0:01:08]} (22. Nxg3 $142 Qh4 23. axb7) 22... Rxe3 {[%emt 0:00:59]} 23. fxe3 {[%emt 0:00:58]} Bxg3 24. Nf4 {[%emt 0:00:10]} Qh4 {[%emt 0:01:04]} 25. Ra2 {[%emt 0:00:52]} Bxf4 {[%emt 0:00:19]} 26. exf4 {[%emt 0:00:24]} Qg3+ {[%emt 0:00:03]} 27. Bg2 {[%emt 0:00:33]} Bg4 {[%emt 0:00:40]} 28. fxg5 {[%emt 0:01:17]} Bxd1 {[%emt 0:00:08]} 29. Nxd1 {[%emt 0:00:01]} Qxg5 30. Rac2 {[%emt 0:00:26]} bxa6 {[%emt 0:00:27]} 31. d5 {[%emt 0:00:01]} cxd5 {[%emt 0:00:10]} 32. c6 {[%emt 0:00:01]} d4 {[%emt 0:00:23]} 33. c7 Rc8 34. Nf2 {[%emt 0:00:15]} Qe3 {[%emt 0:00:14]} 35. Bh3 {[%emt 0:00:55]} d3 {[%emt 0:00:03]} 36. Bxc8 {[%emt 0:00:08]} dxc2 {[%emt 0:00:13]} 37. Rxc2 {[%emt 0:00:06]} Qb3 {[%emt 0:00:20]} 38. Bf5 {[%emt 0:00:06]} Qg3+ {[%emt 0:00:13]} 39. Kf1 {[%emt 0:00:01]} Qxc7 {[%emt 0:00:06]} 40. Rxc7 {[%emt 0:00:02]} 1-0

[Event "Skalica Rapid 2020"]
[Site "Skalica"]
[Date "2020.08.29"]
[Round "2.6"]
[White "Valenta Vit"]
[Black "Jablonicky Martin"]
[Result "1-0"]
[ECO "A00"]
[WhiteElo "1994"]
[BlackElo "2290"]
[Annotator "ChessBase"]
[PlyCount "101"]
[EventDate "2020.08.29"]
[EventType "swiss"]
[EventCountry "SVK"]
[SourceTitle "playchess.com"]
[Source "ChessBase"]
[SourceQuality "1"]
[TimeControl "600+5"]

1. b4 {[%emt 0:00:00]} d5 {[%emt 0:00:00]} 2. Bb2 {[%emt 0:00:00]} Qd6 {[%emt 0:00:01]} 3. a3 {[%emt 0:00:06]} e5 {[%emt 0:00:02]} 4. d3 {[%emt 0:00:05]} Be6 {[%emt 0:00:02]} 5. Nf3 {[%emt 0:00:10]} Nd7 {[%emt 0:00:02]} 6. Nbd2 {[%emt 0:00:15]} Ngf6 {[%emt 0:00:03]} 7. c4 {[%emt 0:00:05]} c6 {[%emt 0:00:03]} 8. e4 {[%emt 0:00:10]} d4 {[%emt 0:00:05]} 9. Be2 {[%emt 0:00:06]} Be7 {[%emt 0:00:04]} 10. O-O {[%emt 0:00:04]} Nh5 {[%emt 0:00:09]} 11. Nxd4 {[%emt 0:00:07]} Nf4 {[%emt 0:00:06]} 12. Nxe6 {[%emt 0:00:03]} fxe6 {[%emt 0:00:13]} 13. g3 {[%emt 0:00:11]} Nxd3 {[%emt 0:00:11]} 14. Bxd3 {[%emt 0:00:05]} Qxd3 {[%emt 0:00:03]} 15. Nf3 {[%emt 0:00:25]} Qxe4 {[%emt 0:00:19]} 16. Re1 {[%emt 0:00:05]} Qxc4 {[%emt 0:00:03]} 17. Qxd7+ {[%emt 0:00:04]} Kxd7 {[%emt 0:00:06]} 18. Nxe5+ {[%emt 0:00:01]} Ke8 {[%emt 0:00:02]} 19. Nxc4 {[%emt 0:00:02]} Kf7 {[%emt 0:00:06]} 20. Ne5+ {[%emt 0:00:15]} Ke8 {[%emt 0:00:00]} 21. Nf3 {[%emt 0:00:30]} Kf7 {[%emt 0:00:01]} 22. Rad1 {[%emt 0:00:03]} Rhd8 {[%emt 0:00:01]} 23. Kf1 {[%emt 0:00:04]} a5 {[%emt 0:00:01]} 24. Rxd8 {[%emt 0:00:13]} Bxd8 {[%emt 0:00:16]} 25. Bc3 {[%emt 0:00:16]} axb4 {[%emt 0:00:02]} 26. axb4 {[%emt 0:00:03]} Be7 {[%emt 0:00:13]} 27. Ne5+ {[%emt 0:00:11]} Ke8 {[%emt 0:00:02]} 28. Nc4 {[%emt 0:00:01]} Kf7 {[%emt 0:00:08]} 29. Ke2 {[%emt 0:00:18]} Ra4 {[%emt 0:00:15]} 30. Rb1 {[%emt 0:00:09]} g6 {[%emt 0:00:24]} 31. Rb3 {[%emt 0:00:03]} Ra2+ {[%emt 0:00:24]} 32. Kf3 {[%emt 0:00:02]} Ke8 {[%emt 0:00:12]} 33. Be5 {[%emt 0:00:07]} Ra4 {[%emt 0:00:10]} 34. Nd6+ {[%emt 0:00:06]} Kd7 {[%emt 0:00:26]} 35. Nxb7 {[%emt 0:00:21]} Bxb4 {[%emt 0:00:24]} 36. Nd6 {[%emt 0:00:21]} c5 {[%emt 0:00:30]} 37. Nc4 {[%emt 0:00:07]} Kc6 {[%emt 0:00:02]} 38. Ne3 {[%emt 0:00:21]} Kb5 {[%emt 0:00:06]} 39. Nc2 {[%emt 0:00:27]} Kc4 {[%emt 0:00:14]} 40. Rb1 {[%emt 0:00:12]} Kd3 {[%emt 0:00:24]} 41. Nxb4+ {[%emt 0:00:11]} cxb4 {[%emt 0:00:02]} 42. Bd6 {[%emt 0:00:09]} Kc4 {[%emt 0:00:01]} 43. Rxb4+ {[%emt 0:00:05]} Rxb4 {[%emt 0:00:03]} 44. Bxb4 {[%emt 0:00:02]} Kxb4 {[%emt 0:00:01]} 45. Ke4 {[%emt 0:00:06]} Kc3 {[%emt 0:00:01]} 46. Ke5 {[%emt 0:00:06]} Kd3 {[%emt 0:00:04]} 47. Kxe6 {[%emt 0:00:09]} Ke4 {[%emt 0:01:04]} 48. f4 {[%emt 0:00:12]} Kf3 {[%emt 0:00:04]} 49. Kf6 {[%emt 0:00:11]} Kg2 {[%emt 0:00:03]} 50. g4 {[%emt 0:00:01]} Kxh2 {[%emt 0:00:05]} 51. f5 {[%emt 0:00:16]} 1-0

[Event "Skalica Rapid 2020"]
[Site "Skalica"]
[Date "2020.08.29"]
[Round "2.6"]
[White "Meszaros, Casey Ryan"]
[Black "Chlpek, Daniel"]
[Result "0-1"]
[ECO "B13"]
[WhiteElo "1478"]
[BlackElo "1879"]
[Annotator "NA"]
[PlyCount "92"]
[EventDate "2020.08.29"]
[EventType "swiss"]
[EventCountry "SVK"]
[SourceTitle "playchess.com"]
[Source "ChessBase"]
[SourceQuality "1"]
[TimeControl "600+5"]

1. e4 {[%emt 0:00:00]} c6 {[%emt 0:00:00]} 2. d4 {[%emt 0:00:00]} d5 {[%emt 0:00:00]} 3. exd5 {[%emt 0:00:00]} cxd5 {[%emt 0:00:00]} 4. c4 {[%emt 0:00:00]} Nf6 {[%emt 0:00:02]} 5. Nc3 {[%emt 0:00:03]} Nc6 {[%emt 0:00:06]} 6. Nf3 {[%emt 0:01:01]} Bg4 {[%emt 0:00:15]} 7. Be2 {[%emt 0:00:09]} e6 {[%emt 0:00:06]} 8. c5 {[%emt 0:00:09]} Be7 {[%emt 0:00:05] B13: Caro-Kann: Exchange Variation and Panov-Botvinnik Attack.} 9. O-O {[%emt 0:00:07]} O-O {[%emt 0:00:01]} 10. h3 {[%emt 0:00:13]} Bh5 {[%emt 0:00:07]} ({Better is} 10... Bxf3 $15 11. Bxf3 b6) 11. a3 {[%emt 0:00:14]} Ne4 {[%emt 0:00:05] [#]} 12. Ne5 $146 {[%emt 0:01:29]} ({Predecessor:} 12. Bf4 g5 13. Bh2 f5 14. Ne5 Bxe2 15. Nxe2 f4 16. Nxc6 bxc6 17. Nc3 e5 18. Nxe4 dxe4 19. dxe5 Qxd1 20. Rfxd1 Bxc5 {½-½ (39) Arnaez Gil,I (2231)-Cifuentes Parada,R (2526) Pais Vasco 2009}) 12... Bxe2 {[%emt 0:00:07]} 13. Qxe2 {[%emt 0:00:05]} Nxd4 {[%emt 0:00:21]} 14. Qg4 {[%emt 0:00:57]} Nxc3 {[%emt 0:00:42]} 15. bxc3 {[%emt 0:00:09]} Nb3 {[%emt 0:00:03]} 16. Rb1 {[%emt 0:00:06]} Nxc1 {[%emt 0:00:03]} 17. Rfxc1 {[%emt 0:00:05]} Qc7 {[%emt 0:00:07]} 18. Nd3 {[%emt 0:00:48]} Bf6 {[%emt 0:00:07]} 19. c4 {[%emt 0:00:53]} dxc4 {[%emt 0:00:08]} 20. Rxc4 {[%emt 0:00:05]} Rfd8 {[%emt 0:00:41]} 21. Nf4 {[%emt 0:00:15]} Be7 {[%emt 0:00:43]} 22. Re1 {[%emt 0:00:17]} Kh8 {[%emt 0:00:45]} 23. Rc3 {[%emt 0:01:32]} g6 {[%emt 0:00:57]} 24. h4 {[%emt 0:00:34]} Bxc5 {[%emt 0:00:18]} 25. Qg5 {[%emt 0:00:33]} Bxf2+ {[%emt 0:00:11]} 26. Kxf2 {[%emt 0:00:11]} Qxc3 {[%emt 0:00:02]} 27. h5 {[%emt 0:00:21]} Rac8 {[%emt 0:01:25]} 28. h6 {[%emt 0:00:15]} Qc5+ {[%emt 0:00:04]} 29. Qxc5 {[%emt 0:00:08]} Rxc5 {[%emt 0:00:01]} 30. Rb1 {[%emt 0:00:14]} b6 {[%emt 0:00:03]} 31. a4 {[%emt 0:00:11]} Rc4 {[%emt 0:00:03]} 32. Ne2 {[%emt 0:00:17]} Rxa4 {[%emt 0:00:05]} 33. Rc1 {[%emt 0:00:01]} Kg8 {[%emt 0:00:27]} 34. Ng3 {[%emt 0:00:15]} Ra2+ {[%emt 0:00:07]} 35. Kg1 {[%emt 0:00:07]} Rad2 {[%emt 0:00:13]} 36. Kh2 {[%emt 0:00:11]} R2d4 37. Rc7 {[%emt 0:00:19]} a5 $19 {[%emt 0:00:18]} 38. Rb7 {[%emt 0:00:01]} a4 {[%emt 0:00:12]} 39. Rxb6 {[%emt 0:00:11]} Ra8 {[%emt 0:00:01]} 40. Rb1 {[%emt 0:00:03]} a3 {[%emt 0:00:01]} 41. Ra1 {[%emt 0:00:02]} a2 {[%emt 0:00:02]} 42. Ne2 {[%emt 0:00:03]} Rd2 {[%emt 0:00:08]} 43. Nc3 {[%emt 0:00:04]} Rc2 {[%emt 0:00:02]} 44. Ne4 {[%emt 0:00:06]} Rb2 {[%emt 0:00:13]} 45. Kg3 {[%emt 0:00:08]} Rb1 {[%emt 0:00:03]} 46. Nf6+ {[%emt 0:00:03]} Kh8 {[%emt 0:00:03]} 0-1

[Event "Skalica Rapid 2020"]
[Site "Skalica"]
[Date "2020.08.29"]
[Round "2.7"]
[White "Nemsak, Denis"]
[Black "Fajtakova, Silvia"]
[Result "1-0"]
[ECO "A34"]
[WhiteElo "1869"]
[BlackElo "1509"]
[Annotator "NA"]
[PlyCount "71"]
[EventDate "2020.08.29"]
[EventType "swiss"]
[EventCountry "SVK"]
[SourceTitle "playchess.com"]
[Source "ChessBase"]
[SourceQuality "1"]
[TimeControl "600+5"]

1. c4 {[%emt 0:00:00]} c5 {[%emt 0:00:00]} 2. Nc3 {[%emt 0:00:00]} d6 {[%emt 0:00:00]} 3. g3 {[%emt 0:00:01]} Nc6 {[%emt 0:00:03]} 4. Bg2 {[%emt 0:00:01]} Bd7 {[%emt 0:00:01]} 5. Nf3 {[%emt 0:00:02]} Nf6 {[%emt 0:00:05]} 6. O-O {[%emt 0:00:02]} Qc8 {[%emt 0:00:08]} 7. Re1 {[%emt 0:00:03]} Bh3 {[%emt 0:00:04]} 8. Bh1 {[%emt 0:00:03]} g6 {[%emt 0:00:16]} 9. d4 {[%emt 0:00:02]} cxd4 {[%emt 0:00:28]} 10. Nxd4 {[%emt 0:00:01]} Ne5 {[%emt 0:00:05]} 11. b3 {[%emt 0:00:04]} Bg7 {[%emt 0:00:20]} 12. Bb2 {[%emt 0:00:02]} Neg4 {[%emt 0:00:14]} 13. Rc1 {[%emt 0:00:18]} Nd7 {[%emt 0:00:22]} 14. Ne4 {[%emt 0:00:27]} Bh6 {[%emt 0:00:39]} 15. Nb5 {[%emt 0:00:16]} Qd8 {[%emt 0:01:55]} 16. Bxh8 {[%emt 0:00:13]} Bxc1 {[%emt 0:00:07]} 17. Qxc1 {[%emt 0:00:02]} f6 {[%emt 0:00:02]} 18. Nbxd6+ {[%emt 0:00:09]} exd6 {[%emt 0:00:20]} 19. Nxd6+ {[%emt 0:00:01]} Ke7 {[%emt 0:00:07]} 20. Qa3 {[%emt 0:00:32]} Qc7 {[%emt 0:01:40]} 21. Nb5+ Qc5 {[%emt 0:00:00]} 22. Qxc5+ {[%emt 0:00:21]} Nxc5 23. Bd5 {[%emt 0:00:25]} Rxh8 {[%emt 0:00:09]} 24. e4 {[%emt 0:00:21]} Nd3 {[%emt 0:00:05]} 25. Re2 {[%emt 0:00:03]} Ndxf2 {[%emt 0:00:04]} 26. Rxf2 {[%emt 0:00:01]} Nxf2 {[%emt 0:00:01]} 27. Kxf2 {[%emt 0:00:01]} b6 {[%emt 0:00:11]} 28. Nd4 {[%emt 0:00:03]} Kd6 {[%emt 0:00:18]} 29. Kf3 {[%emt 0:00:10]} Re8 {[%emt 0:00:10]} 30. b4 {[%emt 0:00:14]} a6 {[%emt 0:00:10]} 31. a4 {[%emt 0:00:04]} f5 {[%emt 0:00:08]} 32. exf5 {[%emt 0:00:04]} gxf5 {[%emt 0:00:01]} 33. Kf4 {[%emt 0:00:16]} Rf8 {[%emt 0:00:26]} 34. a5 {[%emt 0:00:19]} bxa5 {[%emt 0:00:07]} 35. bxa5 {[%emt 0:00:00]} Kc5 {[%emt 0:00:14]} 36. Ne6+ {[%emt 0:00:02]} 1-0

[Event "Skalica Rapid 2020"]
[Site "Skalica"]
[Date "2020.08.29"]
[Round "2.8"]
[White "Petran Peter"]
[Black "Pniaczek Marek"]
[Result "1-0"]
[ECO "A08"]
[WhiteElo "2219"]
[BlackElo "1969"]
[Annotator "ChessBase"]
[PlyCount "55"]
[EventDate "2020.08.29"]
[EventType "swiss"]
[EventCountry "SVK"]
[SourceTitle "playchess.com"]
[Source "ChessBase"]
[SourceQuality "1"]
[TimeControl "600+5"]

1. g3 {[%emt 0:00:00]} Nf6 {[%emt 0:00:00]} 2. Bg2 {[%emt 0:00:05]} d5 {[%emt 0:00:09]} 3. Nf3 {[%emt 0:00:00]} g6 {[%emt 0:00:04]} 4. O-O {[%emt 0:00:00]} Bg7 {[%emt 0:00:01]} 5. d3 {[%emt 0:00:01]} O-O {[%emt 0:00:05]} 6. Nbd2 {[%emt 0:00:05]} c5 {[%emt 0:00:43]} 7. e4 {[%emt 0:00:00]} Nc6 {[%emt 0:00:10]} 8. c3 {[%emt 0:00:11]} e5 {[%emt 0:00:14]} 9. Re1 {[%emt 0:00:13]} Re8 {[%emt 0:00:02]} 10. Qc2 {[%emt 0:00:20]} b6 {[%emt 0:00:18]} 11. a4 {[%emt 0:00:21]} Bb7 {[%emt 0:00:07]} 12. Nf1 {[%emt 0:00:42]} Rc8 {[%emt 0:00:10]} 13. Bg5 {[%emt 0:00:32]} d4 {[%emt 0:00:22]} 14. N1d2 {[%emt 0:00:27]} Na5 {[%emt 0:01:50]} 15. Rad1 {[%emt 0:00:41]} h6 {[%emt 0:00:19]} 16. Bxf6 {[%emt 0:00:02]} Qxf6 {[%emt 0:00:16]} 17. Qb1 {[%emt 0:00:19]} dxc3 {[%emt 0:00:54]} 18. bxc3 {[%emt 0:00:02]} Red8 {[%emt 0:00:09]} 19. Nf1 {[%emt 0:00:38]} h5 {[%emt 0:00:52]} 20. Ne3 {[%emt 0:00:12]} Bh6 {[%emt 0:00:17]} 21. Nd5 {[%emt 0:00:19]} Bxd5 {[%emt 0:00:15]} 22. exd5 {[%emt 0:00:01]} Rxd5 {[%emt 0:00:01]} 23. c4 {[%emt 0:00:10]} Rdd8 {[%emt 0:00:23]} 24. Nxe5 {[%emt 0:00:05]} Re8 {[%emt 0:00:35]} 25. f4 {[%emt 0:00:04]} Bxf4 {[%emt 0:01:04]} 26. gxf4 {[%emt 0:00:14]} Qxf4 {[%emt 0:00:01]} 27. Qb2 {[%emt 0:00:45]} Kh7 {[%emt 0:01:32]} 28. Re4 {[%emt 0:00:44]} 1-0

[Event "Skalica Rapid 2020"]
[Site "Skalica"]
[Date "2020.08.29"]
[Round "2.8"]
[White "Sevcikova, Lucia"]
[Black "Dubanova, Kristina"]
[Result "0-1"]
[ECO "C58"]
[WhiteElo "1801"]
[BlackElo "1128"]
[Annotator "NA"]
[PlyCount "59"]
[EventDate "2020.08.29"]
[EventType "swiss"]
[EventCountry "SVK"]
[SourceTitle "playchess.com"]
[Source "ChessBase"]
[SourceQuality "1"]
[TimeControl "600+5"]

1. e4 {[%emt 0:00:00]} e5 {[%emt 0:00:00]} 2. Nf3 {[%emt 0:00:00]} Nc6 {[%emt 0:00:00]} 3. Bc4 {[%emt 0:00:00]} Nf6 {[%emt 0:00:08]} 4. Ng5 {[%emt 0:00:02]} d5 {[%emt 0:00:06]} 5. exd5 {[%emt 0:00:01]} Na5 {[%emt 0:00:01]} 6. Bb5+ {[%emt 0:00:01]} c6 {[%emt 0:00:04]} 7. dxc6 {[%emt 0:00:01]} Nxc6 {[%emt 0:01:36]} 8. Bxc6+ {[%emt 0:00:07]} bxc6 {[%emt 0:00:02]} 9. d3 {[%emt 0:00:02]} Bc5 {[%emt 0:00:08]} 10. Nc3 {[%emt 0:00:25]} Bf5 {[%emt 0:00:38]} 11. Qf3 {[%emt 0:00:27]} Qd7 {[%emt 0:01:02]} 12. Nge4 {[%emt 0:00:10]} Nxe4 {[%emt 0:01:22]} 13. Nxe4 {[%emt 0:00:02]} Bxe4 {[%emt 0:00:19]} 14. Qxe4 {[%emt 0:00:02]} Qd6 {[%emt 0:00:35]} 15. O-O {[%emt 0:00:20]} O-O {[%emt 0:00:09]} 16. Re1 {[%emt 0:00:06]} f6 {[%emt 0:00:20]} 17. Be3 {[%emt 0:00:07]} Bb6 {[%emt 0:00:21]} 18. Rad1 {[%emt 0:00:18]} f5 {[%emt 0:00:48]} 19. Qc4+ {[%emt 0:00:03]} Kh8 {[%emt 0:00:07]} 20. a3 {[%emt 0:00:28]} Rae8 {[%emt 0:00:36]} 21. Bxb6 {[%emt 0:00:26]} axb6 {[%emt 0:00:05]} 22. Re3 {[%emt 0:00:14]} Rf6 {[%emt 0:00:48]} 23. Rde1 {[%emt 0:00:28]} Rh6 24. Qf7 {[%emt 0:00:46]} Ree6 {[%emt 0:02:05]} 25. Rg3 {[%emt 0:00:43]} Rhg6 {[%emt 0:00:31]} 26. Qxf5 {[%emt 0:00:14]} Rgf6 {[%emt 0:00:12]} 27. Qg4 {[%emt 0:00:14]} Rg6 {[%emt 0:00:05]} 28. Qe4 {[%emt 0:00:06]} Rgf6 {[%emt 0:00:05]} 29. Rf3 {[%emt 0:00:22]} Rg6 {[%emt 0:00:05]} 30. Rf5 {[%emt 0:00:14]} 0-1

[Event "Skalica Rapid 2020"]
[Site "Skalica"]
[Date "2020.08.29"]
[Round "2.9"]
[White "Majoros Rozsa Evelin"]
[Black "Matejovic Juraj"]
[Result "0-1"]
[ECO "B45"]
[WhiteElo "1936"]
[BlackElo "2219"]
[Annotator "ChessBase"]
[PlyCount "70"]
[EventDate "2020.08.29"]
[EventType "swiss"]
[EventCountry "SVK"]
[SourceTitle "playchess.com"]
[Source "ChessBase"]
[SourceQuality "1"]
[TimeControl "600+5"]

1. e4 {[%emt 0:00:00]} c5 {[%emt 0:00:00]} 2. Nf3 {[%emt 0:00:00]} e6 {[%emt 0:00:00]} 3. d4 {[%emt 0:00:01]} cxd4 {[%emt 0:00:01]} 4. Nxd4 {[%emt 0:00:01]} Nc6 {[%emt 0:00:01]} 5. Nb5 {[%emt 0:00:02]} Nf6 {[%emt 0:00:11]} 6. N1c3 {[%emt 0:00:47]} Bb4 {[%emt 0:00:18]} 7. a3 {[%emt 0:00:22]} Bxc3+ {[%emt 0:00:06]} 8. Nxc3 {[%emt 0:00:01]} d5 {[%emt 0:00:02]} 9. exd5 {[%emt 0:00:12]} exd5 {[%emt 0:00:02]} 10. Bd3 {[%emt 0:00:10]} O-O {[%emt 0:00:07]} 11. O-O {[%emt 0:00:03]} d4 {[%emt 0:00:03]} 12. Ne4 {[%emt 0:00:23]} Bf5 {[%emt 0:00:04]} 13. Bg5 {[%emt 0:00:32]} Bxe4 {[%emt 0:00:03]} 14. Bxe4 {[%emt 0:00:08]} h6 {[%emt 0:00:06]} 15. Bxf6 {[%emt 0:00:42]} Qxf6 {[%emt 0:00:02]} 16. b4 {[%emt 0:00:08]} Rac8 {[%emt 0:01:56]} 17. Re1 {[%emt 0:00:23]} Rfd8 {[%emt 0:01:44]} 18. Qe2 {[%emt 0:00:34]} d3 {[%emt 0:03:35]} 19. Bxd3 {[%emt 0:00:57]} Nd4 {[%emt 0:00:20]} 20. Qe4 {[%emt 0:00:19]} g6 {[%emt 0:00:11]} 21. Rad1 {[%emt 0:00:34]} Kg7 {[%emt 0:00:45]} 22. h3 {[%emt 0:00:27]} b6 {[%emt 0:00:08]} 23. Qe7 {[%emt 0:01:09]} Rc3 {[%emt 0:01:29]} 24. a4 {[%emt 0:00:56]} Nc6 {[%emt 0:00:38]} 25. Qe4 {[%emt 0:00:29]} Rd4 {[%emt 0:00:02]} 26. Qe8 {[%emt 0:00:32]} Nxb4 {[%emt 0:00:07]} 27. Qb8 {[%emt 0:00:43]} Nxc2 {[%emt 0:00:07]} 28. Bxc2 {[%emt 0:00:43]} Rxc2 {[%emt 0:00:02]} 29. Qg3 {[%emt 0:00:05]} Rxa4 {[%emt 0:00:06]} 30. Rd6 {[%emt 0:00:25]} Qg5 {[%emt 0:00:08]} 31. Qf3 {[%emt 0:00:21]} Rf4 {[%emt 0:00:05]} 32. Qa3 {[%emt 0:00:04]} Rcxf2 {[%emt 0:00:03]} 33. Qa1+ {[%emt 0:00:01]} Kh7 {[%emt 0:00:03]} 34. g4 {[%emt 0:00:11]} Qh4 {[%emt 0:00:07]} 35. Re3 {[%emt 0:00:15]} Rf1+ {[%emt 0:00:06]} 0-1